Cogmind - Beta 11.1 @@@ ROGUE MODE // 2022.04.29 @ 19:59:00 Player: Demise Result: Destroyed by as-18541 with Assembled Heavy Rifle Performance ------------- Evolutions (0) 0 Regions Visited (4) 800 Robots Destroyed (39) 195 Value Destroyed (681) 681 Prototype IDs (2) 40 Alien Tech Used (0) 0 Bonus (-806) -806 TOTAL SCORE: 910 Bonus ------- Friendly Fire -806 Cogmind --------- Core Integrity 0/250 Matter 162/300 Energy 160/160 System Corruption 11% Temperature Cool (0) Movement Treading (320) Ox2 Location -9/Mines Parts ------- > --- POWER (1) -------- Light Nuclear Core > --- PROPULSION (2) --- Light Treads Compact Wheel > --- UTILITY (2) ------ High-capacity Storage Unit Core Shielding > --- WEAPON (2) ------- Light Assault Rifle Grenade Launcher > --- INVENTORY (20) --- Light Ion Engine Light Treads Wheel Improved Heat Sink Structural Scanner Signal Interpreter Seismic Detector Targeting Computer Heavy Armor Plating Light Assault Rifle Light Assault Rifle Light Assault Rifle Light Assault Rifle Grenade Launcher Grenade Launcher Mining Laser Peak State ------------ > --- POWER ------------ Light Nuclear Core > --- PROPULSION ------- Light Treads Compact Wheel > --- UTILITY ---------- High-capacity Storage Unit Core Shielding > --- WEAPON ----------- Light Assault Rifle Light Assault Rifle > --- INVENTORY -------- Light Ion Engine Light Treads Light Treads Wheel Improved Heat Sink Structural Scanner Signal Interpreter Seismic Detector Targeting Computer Power Shielding Heavy Armor Plating Light Assault Rifle Light Assault Rifle Light Assault Rifle Grenade Launcher Grenade Launcher Grenade Launcher Grenade Launcher Mining Laser [Rating: 11] Favorites ----------- Power Light Ion Engine Engine Light Ion Engine Power Core Light Nuclear Core Propulsion Compact Wheel Treads Light Treads Wheel Compact Wheel Utility High-capacity Storage Unit Device Seismic Detector Storage High-capacity Storage Unit Protection Core Shielding Weapon Light Assault Rifle Energy Gun EM Pulse Gun Ballistic Gun Light Assault Rifle Launcher Grenade Launcher Build | -11 -10 -10 -10 -9 ------- Run | Scr Mat Min Exi Min Slots Evolved . | . . . . . Power . | . . . . . Propulsion . | . . . . . Utility . | . . . . . Weapon . | . . . . . Parts Attached 30 | 7 11 8 1 3 Power 5 | 1 2 2 . . Engine 4 | 1 2 1 . . Core 1 | . . 1 . . Reactor . | . . . . . Propulsion 7 | 2 2 2 . 1 Treads 4 | . 2 1 . 1 Leg . | . . . . . Wheel 3 | 2 . 1 . . Hover . | . . . . . Flight . | . . . . . Utility 8 | 2 4 1 1 . Device 2 | 1 1 . . . Storage 4 | 1 2 . 1 . Processor . | . . . . . Hackware . | . . . . . Protection 2 | . 1 1 . . Artifact . | . . . . . Weapon 10 | 2 3 3 . 2 Energy Gun 2 | 2 . . . . Energy Cannon . | . . . . . Ballistic Gun 6 | . 3 3 . . Ballistic Cannon . | . . . . . Launcher 2 | . . . . 2 Special Weapon . | . . . . . Impact Weapon . | . . . . . Slashing Weapon . | . . . . . Piercing Weapon . | . . . . . Special Melee Weapon . | . . . . . Unidentified Prototypes . | . . . . . Corrupted Parts 1 | . . 1 . . System Corruption 3 | . . 3 . . Parts Lost 7 | . 2 3 . 2 Power 1 | . 1 . . . Propulsion 1 | . . . . 1 Utility 1 | . . 1 . . Weapon 4 | . 1 2 . 1 Highest Loss Streak 2 | . 1 2 . 2 To Critical Strikes . | . . . . . Average Slot Usage (%) 99 | . 98 99 100 92 Engine 11 | . 13 12 . . Core 1 | . . 1 14 14 Treads 11 | . 10 13 14 14 Wheel 15 | . 17 14 14 14 Device 4 | . 7 . . . Storage 14 | . 14 14 14 14 Protection 9 | . 5 14 14 14 Energy Gun 4 | . 8 . . . Ballistic Gun 23 | . 19 28 28 14 Naked Turns . | . . . . . Heaviest Build 51 | 13 51 50 48 48 Greatest Support 32 | 32 32 16 16 16 Greatest Overweight (x) 3 | . 3 3 2 2 Average Overweight (x) 1 | . 1 2 2 2 Largest Inventory Capacity 20 | 8 20 20 20 20 Average Capacity 18 | 7 19 20 20 20 Most Carried 20 | 3 20 20 20 19 Average Carried 14 | . 10 19 19 18 Final Capacity 20 | 8 20 20 20 20 Final Carried 20 | 3 20 20 19 17 Class Distribution -------------------- 100% | Mutant Dominant Class ---------------- Mutant | -10/Materials Mutant | -10/Mines Mutant | -10/Exiles Mutant | -9/Mines Resources | -11 -10 -10 -10 -9 ----------- Run | Scr Mat Min Exi Min Matter Collected 791 | 270 293 228 . . Remotely . | . . . . . Salvage Created 1263 | 81 882 264 . 36 Parts 80 | 8 50 22 . . Haulers Intercepted 1 | . 1 . . . Recyclers Shooed 2 | . 1 1 . . Parts Field Recycled . | . . . . . Retrieved Matter . | . . . . . Parts Self-Destructed . | . . . . . Prevented . | . . . . . Kills | -11 -10 -10 -10 -9 ------- Run | Scr Mat Min Exi Min Combat Hostiles Destroyed 40 | . 20 5 . 15 Guns 21 | . 16 5 . . AOE 18 | . 3 . . 15 Classes Destroyed 9 | 1 7 . . 1 Builder 3 | . 2 1 . . Tunneler 5 | 3 1 1 . . Hauler 1 | . 1 . . . Recycler 1 | . 1 . . . Operator 1 | . 1 . . . Watcher 2 | . 2 . . . Swarmer 12 | . 9 3 . . Grunt 13 | . 11 2 . . Assembled 15 | . . . . 15 Best Kill Streak 15 | 1 6 3 . 15 Combat Bots Only 15 | . 4 3 . 15 Max Kills in Single Turn 7 | 1 3 1 . 7 Gunslinging . | . . . . . Exploded 7 | . 1 . . 7 Melee . | . . . . . Uniques/NPCs Destroyed 1 | . . 1 . . YI-UF0 (-10/Mines) Combat | -11 -10 -10 -10 -9 -------- Run | Scr Mat Min Exi Min Damage Taken 1263 | . 649 374 . 240 Core 253 | . 97 96 . 60 Absorbed by Shields . | . . . . . Redirected to Shielding 33 | . . 19 . 14 Regen/Repaired (Parts) 42 | . 42 . . . Core Remaining (%) 100 | 100 . . . . Volleys Fired 135 | 13 77 36 . 9 Largest 2 | 2 2 2 . 1 Hottest 80 | 80 80 40 . 30 Shots Fired 260 | 26 153 72 . 9 Gun 251 | 26 153 72 . . Cannon . | . . . . . Launcher 9 | . . . . 9 Special . | . . . . . Kinetic 170 | . 98 72 . . Thermal . | . . . . . Explosive 9 | . . . . 9 Electromagnetic 81 | 26 55 . . . Robot Hit Streak 17 | 4 17 8 . 5 Robot Miss Streak 4 | 3 4 3 . 1 Penetration Max . | . . . . . Secondary Targets 1 | . 1 . . . Max Gunslinging Chain 1 | . 1 . . . Shots Hit Robots 174 | 14 108 46 . 6 Core Hits 101 | 4 40 24 . 33 Critical Kills 1 | . 1 . . . Critical Parts Destroyed 2 | . 2 . . . Critical Strikes 3 | . 3 . . . Destroy 3 | . 3 . . . Melee Attacks . | . . . . . Impact . | . . . . . Slashing . | . . . . . Piercing . | . . . . . Sneak Attacks . | . . . . . Combat Hostiles . | . . . . . Follow-up Attacks . | . . . . . Damage Inflicted 3198 | 189 1504 406 . 1099 Guns 1843 | 189 1257 397 . . Cannons . | . . . . . Explosions 1346 | . 247 . . 1099 Melee . | . . . . . Ramming 9 | . . 9 . . Kinetic 1046 | . 649 397 . . Thermal 247 | . 247 . . . Explosive 1099 | . . . . 1099 Electromagnetic 797 | 189 608 . . . Impact . | . . . . . Slashing . | . . . . . Piercing . | . . . . . Highest Corruption 11 | . 2 11 11 11 Average Corruption 6 | . 2 9 11 11 Corruption Purged . | . . . . . Corruption Blocked . | . . . . . Effects 50 | . 7 35 7 1 Message Errors 8 | . 1 6 1 . Matter Fused 14 | . 3 9 2 . Heat Flow Errors 2 | . . 1 1 . Energy Discharges 9 | . 1 8 . . Data Loss (minor) 9 | . 1 7 . 1 Data Loss (major) 3 | . 1 . 2 . Misfires 2 | . . 2 . . Alerts 1 | . . . 1 . Weapon Failures 2 | . . 2 . . Overload Shots . | . . . . . Overflow Damage 80 | . . . . 80 Projectiles . | . . . . . Explosions 80 | . . . . 80 Melee . | . . . . . Knockbacks . | . . . . . Impact . | . . . . . Kinetic . | . . . . . Secondary . | . . . . . Self-Inflicted Damage 54 | . . 4 . 50 Shots 2 | . . . . 2 Rammed 1 | . . 1 . . Targets Rammed 1 | . . 1 . . Kicked . | . . . . . Crushed . | . . . . . Highest Temperature 261 | 90 138 103 261 . Average Temperature 36 | 28 33 25 171 . Received Heat Transfer 336 | . 192 144 . . Siege Activations . | . . . . . Robots Corrupted 2 | . 2 . . . Combat Hostiles 1 | . 1 . . . Parts Fried 5 | 3 2 . . . Impact Corruptions . | . . . . . Robots Melted . | . . . . . Combat Hostiles . | . . . . . Parts Melted . | . . . . . Heat Transferred 250 | . 250 . . . Parts Sabotaged . | . . . . . Parts Stolen . | . . . . . Parts Stripped . | . . . . . Power Chain Reactions 4 | . 4 . . . Missiles Intercepted . | . . . . . Alert | -11 -10 -10 -10 -9 ------- Run | Scr Mat Min Exi Min Peak Influence 369 | 15 369 154 . 68 Initial 94 | . 9 94 . . Average 142 | 5 207 63 . 47 Maximum Alert Level 1 | . 1 . . . Low Security (%) 67 | 100 42 100 . 100 Level 1 32 | . 57 . . . Level 2 . | . . . . . Level 3 . | . . . . . Level 4 . | . . . . . Level 5 . | . . . . . High Security . | . . . . . Max Security . | . . . . . Squads Dispatched 5 | . 5 . . . Investigation 3 | . 3 . . . Extermination . | . . . . . Reinforcement 2 | . 2 . . . Assault . | . . . . . Garrison . | . . . . . Intercept . | . . . . . Searches Triggered . | . . . . . Construction Impeded . | . . . . . Haulers Reinforced . | . . . . . Active Scanning Responses . | . . . . . Cargo Convoy Interrupts . | . . . . . Stealth | -11 -10 -10 -10 -9 --------- Run | Scr Mat Min Exi Min Distress Signals 3 | . 3 . . . Communications Jammed . | . . . . . Distress Signals . | . . . . . Times Spotted 60 | . 35 5 . 20 Peak Tracking Total 19 | . 6 3 . 19 Tactical Retreats 2 | . 2 . . . Traps | -11 -10 -10 -10 -9 ------- Run | Scr Mat Min Exi Min Traps Triggered 7 | . 4 3 . . Indirectly . | . . . . . Trap Hack Attempts . | . . . . . Triggered . | . . . . . Disarmed . | . . . . . Reprogrammed . | . . . . . Reused . | . . . . . Traps Extracted . | . . . . . Installed . | . . . . . Triggered . | . . . . . Machines | -11 -10 -10 -10 -9 ---------- Run | Scr Mat Min Exi Min Machines Disabled . | . . . . . Max in Single Turn . | . . . . . Machines Sabotaged . | . . . . . Garrisons Compromised . | . . . . . Overloaded Fab Kills . | . . . . . Hacking | -11 -10 -10 -10 -9 --------- Run | Scr Mat Min Exi Min Machines Accessed 10 | . 8 1 1 . Terminals 5 | . 5 . . . Fabricators . | . . . . . Repair Stations 1 | . 1 . . . Recycling Units 2 | . 2 . . . Scanalyzers . | . . . . . Garrison Access . | . . . . . Total Hacks 25 | . 23 1 1 . Successful 18 | . 16 1 1 . Failed 7 | . 7 . . . Catastrophic . | . . . . . Database Lockouts . | . . . . . Manual 13 | . 13 . . . Terminals 16 | . 16 . . . Fabricators . | . . . . . Repair Stations 4 | . 4 . . . Recycling Units 3 | . 3 . . . Scanalyzers . | . . . . . Garrison Access . | . . . . . Terminal Hacks 7 | . 5 1 1 . Record 1 | . . . 1 . Robot Analysis 1 | . 1 . . . Prototype ID Bank 1 | . 1 . . . Open Door 1 | . . 1 . . Branch Access Points 1 | . 1 . . . Terminal Index 1 | . 1 . . . Locate Traps 1 | . 1 . . . Fabricator Hacks . | . . . . . Repair Station Hacks 4 | . 4 . . . Scan Component 2 | . 2 . . . Repair 2 | . 2 . . . Recycling Unit Hacks 2 | . 2 . . . Retrieve Components 2 | . 2 . . . Scanalyzer . | . . . . . Garrison Access Hacks . | . . . . . Unauthorized Hacks 5 | . 5 . . . Terminals 5 | . 5 . . . Botnet 4 | . 4 . . . Operators 1 | . 1 . . . Fabricators . | . . . . . Repair Stations . | . . . . . Recycling Units . | . . . . . Scanalyzers . | . . . . . Garrison Access . | . . . . . Data Cores Recovered . | . . . . . Used . | . . . . . Hacking Detections 8 | . 8 . . . Full Trace Events 4 | . 4 . . . Feedback Events . | . . . . . Feedback Blocked . | . . . . . Robot Schematics Acquired . | . . . . . Robots Built . | . . . . . Authchips . | . . . . . Time . | . . . . . Total Robot Build Rating . | . . . . . Part Schematics Acquired . | . . . . . Parts Built . | . . . . . Authchips . | . . . . . Time . | . . . . . Total Part Build Rating . | . . . . . Parts Repaired 2 | . 2 . . . Time 52 | . 52 . . . Parts Recycled . | . . . . . Recycled Matter . | . . . . . Retrieved Matter . | . . . . . Retrieved Components 17 | . 17 . . . Parts Scanalyzed . | . . . . . Part Schematics Acquired . | . . . . . Parts Damaged . | . . . . . Bothacking | -11 -10 -10 -10 -9 ------------ Run | Scr Mat Min Exi Min Used RIF Installer . | . . . . . Robots Hacked . | . . . . . Non-combat . | . . . . . Combat . | . . . . . Robot Hacks Applied . | . . . . . Relay Couplers Released . | . . . . . Fabnet Peak Effective % . | . . . . . Robots Rewired . | . . . . . Allies Hacked . | . . . . . Hacks Repelled . | . . . . . Allies | -11 -10 -10 -10 -9 -------- Run | Scr Mat Min Exi Min Total Allies . | . . . . . Largest Group . | . . . . . Highest-Rated Group . | . . . . . Highest-Rated Ally . | . . . . . Total Orders . | . . . . . Ally Attacks . | . . . . . Total Damage . | . . . . . Kills . | . . . . . Allies Corrupted . | . . . . . Allies Melted . | . . . . . Intel | -11 -10 -10 -10 -9 ------- Run | Scr Mat Min Exi Min Robot Analysis Total 1 | . 1 . . . Derelict Logs Recovered 1 | . . 1 . . Drone Launches . | . . . . . Drone Recoveries . | . . . . . Exploration | -11 -10 -10 -10 -9 ------------- Run | Scr Mat Min Exi Min Turns Passed 2542 | 119 1317 871 214 21 Spaces Moved 1500 | 68 693 575 163 1 Core 1 | 1 . . . . Treads 36 | . 36 . . . Legs . | . . . . . Wheels 1463 | 67 657 575 163 1 Hover . | . . . . . Flight . | . . . . . Fastest Speed 50 | 50 100 130 130 130 Average Speed 132 | 99 138 130 130 130 Slowest Speed 320 | 100 320 145 130 130 Overloaded Moves . | . . . . . Propulsion Burnouts . | . . . . . Robots Hopped . | . . . . . Cave-ins Triggered . | . . . . . Exploration Rate (%) 53 | 4 99 98 59 5 Regions Visited 4 Branch Regions 3 Pre-discovered Areas 1 | . . . 1 . Known Exits Taken 2 | . 1 1 . . Unknown Exits Taken 2 | 1 . . 1 . Scrap Searched 1 | . . 1 . . Spaces Dug . | . . . . . Terrain Destroyed 68 | . 13 . . 55 Melee . | . . . . . Projectile . | . . . . . AOE 68 | . 13 . . 55 Terrain Rammed . | . . . . . Walls Destroyed . | . . . . . Machines Disabled . | . . . . . Actions | -11 -10 -10 -10 -9 --------- Run | Scr Mat Min Exi Min Total 1809 | 90 906 635 165 13 Wait 109 | . 101 8 . . Move 1496 | 67 692 574 162 1 Hop . | . . . . . Pick Up 24 | 3 18 3 . . Fast Attach 13 | 7 4 2 . . Attach 7 | . 1 4 . 2 Detach 3 | . 1 2 . . Swap 10 | . 6 2 1 1 Drop 11 | . 6 3 2 . Fire 135 | 13 77 36 . 9 Melee . | . . . . . Ram 1 | . . 1 . . Kick . | . . . . . Crush . | . . . . . Escape Stasis . | . . . . . Rewire . | . . . . . Trap . | . . . . . Miscellaneous . | . . . . . Route ------- -11/Scrapyard -10/Materials (discovered 4 exits: [*Mat x3] / *Min) -10/Mines (discovered 3 exits: [*Mat x2] / *Exi) -10/Exiles (discovered 2 exits: [*Min x2]) -9/Mines History --------- Turn | Location | Event 20 | -11/Scrapyard | Discovered new exit (range 15) 120 | -11/Scrapyard | Entered Materials 253 | -10/Materials | Discovered new exit (range 11) 316 | -10/Materials | Build established: Mutant 446 | -10/Materials | Repaired Com. Wheel 473 | -10/Materials | Repaired Seismic Detector 806 | -10/Materials | Discovered new exit (range 5) 1231 | -10/Materials | Identified exit to Mines 1244 | -10/Materials | Discovered new exit (range 10) 1329 | -10/Materials | Discovered new exit (range 14) 1437 | -10/Materials | Entered Mines 1456 | -10/Mines | Discovered new exit (range 8) 1530 | -10/Mines | Met a Derelict bent on vengeance 1691 | -10/Mines | Met a Derelict who couldn't figure out how to use a Trap Extractor 1699 | -10/Mines | Core integrity fell below 50% 1701 | -10/Mines | System corruption reached 10% 1748 | -10/Mines | Discovered new exit (range 7) 1773 | -10/Mines | Identified exit to Exiles 1782 | -10/Mines | YI-UF0 nonchalantly dropped a Grenade Launcher on the ground 1804 | -10/Mines | Destroyed YI-UF0 2303 | -10/Mines | Deemed a non-threat by the Exiles lab entrance 2308 | -10/Mines | Entered Exiles 2328 | -10/Exiles | Discovered new exit (range 15) 2340 | -10/Exiles | Met 8R-AWN 2362 | -10/Exiles | Met EX-HEX 2424 | -10/Exiles | Met EX-DEC 2446 | -10/Exiles | Met EX-BIN 2470 | -10/Exiles | Learned location of Zion (-7) 2511 | -10/Exiles | Discovered new exit (range 10) 2522 | -10/Exiles | Entered Mines 2523 | -9/Mines | Assembled infested the area 2535 | -9/Mines | Core integrity fell below 20% 2543 | -9/Mines | Destroyed by as-18541 with Assembled Heavy Rifle Last Messages --------------- 02530_ System corrupted: Component data lost. 02531_ Lgt. Treads destroyed. 02531_ as-42999 destroyed. 02533_ as-53662 destroyed. 02533_ as-30337 destroyed. 02534_ The unstable cave ceiling collapses. 02535_ Destroyed Asb. Hover Unit. 02535_ as-34297 destroyed. 02535_ as-29533 destroyed. 02535_ as-51572 destroyed. 02535_ as-75305 destroyed. 02535_ as-50656 destroyed. 02535_ Destroyed Asb. F-torch. 02535_ as-37322 destroyed. 02535_ as-59281 destroyed. 02537_ as-75377 destroyed. 02537_ as-04703 destroyed. 02537_ Destroyed Asb. Hover Unit. 02538_ Grenade Launcher destroyed. 02543_ as-68766 destroyed. Map ----- +----------------------------------------------------+ | | | | | ????????????????????????????????????????????????? | | ????????????????????????????????????????????????? | | ????????????????????????????????????????????????? | | ????????????????????????????????????????????????? | | ????????????????????????????????????????????????? | | ????????????????????????????????????????????????? | | ????????????????????????????????????????????????? | | ????????????????????????????????????????????????? | | ????????????????????????????????????????????????? | | ??????????????????????#?????????????????????????? | | ??????????????????????# ????????????????????????? | | ??????????????????????# ????????????????????????? | | ??????????????????????# ????????????????????????? | | ??????????????????????# ????????????????????????? | | ?????????????????????? ????????????????????????? | | ??????????????????????# #???????????????????????? | | ??????????????????????# a???????????????????????? | | ??????????????????????# ???????????????????????? | | ??????????????????????# ???????????????????????? | | ??????????????????????# ???????????????????????? | | ??????????????????????# ####???????????????????? | | ?????????????????????## #???????????????????? | | ?????????????????????# #???????????????????? | | ?????????????????????# @ #???????????????????? | | ????????????????????# #??????????????????? | | ????????????????????# ##??????????????????? | | ????????????????????# #??????????????????? | | ??????????????????? #??????????????????? | | ??????????????????# % #??????????????????? | | ??????????????????# #??????????????????? | | ??????????????????## a ###??????????????????? | | ???????????????????## a ????????????????????? | | ????????????????????# ????????????????????? | | ????????????????????##